bitfinex/quotes_ETHUSD_20250604
["timestamp","ask_amount","ask_price","bid_price","bid_amount"]
[1749042979634,0.026,2609.9,2609.8,52.39]
[1749042980932,0.026,2609.9,2609.8,37.09796607]
[1749042981304,0.026,2609.9,2609.8,38.82396607]
[1749042981704,0.026,2609.9,2609.8,42.65567731]
[1749042982214,0.026,2609.9,2609.8,49.04367731]
[1749042982979,0.1,2610.8,2610.2,3.83098192]
[1749042983177,0.1,2610.8,2610.7,31.09796607]
[1749042983363,0.1,2610.8,2610.7,38.82396607]
[1749042983779,0.1,2610.8,2610.7,42.65435638]
[1749042984148,0.1,2610.8,2610.7,38.82396607]
[1749042984381,0.1,2610.8,2610.7,37.09796607]
[1749042984677,0.1,2610.8,2610.7,52.696908]
[1749042985281,0.1,2610.8,2610.7,44.594908]
[1749042985486,0.1,2610.8,2610.7,22.328728]
[1749042985784,1.5078,2610.8,2610.7,22.205993]
[1749042985980,1.5078,2610.8,2610.7,19.857241]
[1749042986577,0.1,2610.8,2610.7,19.857241]
[1749042987369,0.1,2610.8,2610.7,8.262]
[1749042987574,2.029,2610.8,2610.7,16.377]
[1749042987774,2.2339,2610.8,2610.7,9.967]
[1749042987971,2.2339,2610.8,2610.7,16.379]
[1749042988174,2.2339,2610.8,2610.7,8.262]
[1749042988469,2.2339,2610.8,2610.7,9.967]
[1749042989585,2.029,2610.8,2610.7,9.967]
[1749042989888,2.029,2610.8,2610.7,9.966]
[1749042991059,1.479,2610.8,2610.7,16.374]
[1749042992163,1.479,2610.8,2610.7,26.416911]
[1749042992359,1.479,2610.8,2610.7,16.374]
[1749042992562,2.029,2610.8,2610.7,8.261]
[1749042992796,2.2339,2610.8,2610.7,9.966]
[1749042993997,1.3659,2610.6,2610.3,6.405]
[1749042994170,1.3659,2610.6,2610.4,1.705]
[1749042994972,0.55,2610.5,2610.4,1.705]
[1749042995897,0.74159,2610.5,2610.4,8.11]
[1749042996401,0.55,2610.3,2609.0,30.0]
[1749042996588,1.3995,2610.2,2609.2,38.722906]
[1749042996793,1.3995,2610.2,2609.2,28.722906]
[1749042997497,1.3995,2610.2,2609.4,28.660567]
[1749042997669,2.32719976,2610.2,2609.4,28.201567]
[1749042997868,2.32719976,2610.2,2609.4,18.575945]
[1749042998071,2.32719976,2610.2,2609.4,18.092945]
[1749042999072,1.3995,2610.2,2609.4,18.092945]
[1749042999609,1.3995,2610.2,2609.5,22.574031]
[1749042999904,1.3995,2610.2,2609.5,12.508163]
[1749043000571,1.3995,2610.2,2609.5,9.927441]
[1749043000763,0.55,2610.1,2609.5,3.813309]
[1749043000968,0.3049,2610.8,2607.7,3.304]
[1749043000969,1.4145,2609.8,2609.6,9.967]
[1749043001208,1.4145,2609.8,2608.5,16.0]
[1749043001209,0.55,2609.7,2608.5,16.0]
[1749043001391,0.55,2609.7,2607.9,3.8344515]
[1749043001392,0.74645,2609.7,2608.7,3.791243]
[1749043001563,0.55,2609.5,2608.9,10.0]
[1749043001770,1.4334,2609.4,2609.0,8.108]
[1749043002005,0.55,2609.3,2609.1,6.402]
[1749043002208,1.4334,2609.4,2609.2,11.254504]
[1749043003577,1.4334,2609.4,2609.3,10.0]
[1749043003806,1.4334,2609.4,2609.2,19.967818]
[1749043004026,1.4334,2609.4,2609.2,9.967818]
[1749043004184,1.4334,2609.4,2609.2,9.212373]
[1749043004386,1.4312,2609.7,2609.2,9.212373]
[1749043004802,1.62932,2609.7,2609.2,9.212373]
[1749043005536,1.4312,2609.7,2609.2,9.212373]
[1749043006042,0.55,2610.0,2609.2,9.212373]
[1749043010201,0.55,2610.0,2609.3,10.0]
[1749043011133,0.55,2610.0,2609.2,10.0]
[1749043011444,0.55,2610.0,2609.4,10.0]
[1749043011749,1.48086976,2610.0,2609.6,10.0]
[1749043011904,0.55,2610.0,2609.7,1.706]
[1749043012248,0.55,2610.0,2609.8,8.094]
[1749043012402,0.55,2610.0,2609.9,9.969]
[1749043014076,1.4312,2610.1,2609.9,9.969]
[1749043014877,1.3879,2610.5,2610.0,18.817816]
[1749043016147,1.3879,2610.5,2610.0,14.869705]
[1749043016480,1.3879,2610.5,2610.1,3.260992]
[1749043017537,1.4115,2610.7,2610.1,3.260992]
[1749043018254,0.55,2610.6,2610.2,8.081]
[1749043018490,0.55,2610.6,2610.4,10.0]
[1749043018786,0.55,2610.6,2610.5,13.482826]
[1749043018935,1.4115,2610.7,2610.3,9.513528]
[1749043019133,1.4115,2610.7,2610.2,8.081]
[1749043019888,0.55,2610.6,2610.2,8.081]
[1749043020040,0.55,2610.6,2609.9,8.263]
[1749043020041,0.55,2610.4,2610.3,8.077]
[1749043020632,0.55,2610.4,2610.3,1.701]
[1749043020781,0.55,2610.4,2610.3,8.079]
[1749043023095,0.55,2610.4,2609.9,8.263]
[1749043023096,0.55,2610.2,2609.9,8.263]
[1749043023244,0.74794,2610.1,2610.0,8.074]
[1749043023785,0.74794,2610.1,2610.0,1.701]
[1749043024087,0.74794,2610.1,2610.0,8.073]
[1749043030360,4.77,2610.8,2610.0,8.073]
[1749043030361,1.4065,2610.7,2610.1,17.109356]
[1749043030588,1.4065,2610.7,2610.1,16.638284]
[1749043030791,0.55,2610.6,2610.1,13.213326]
[1749043030957,0.55,2610.6,2610.2,10.0]
[1749043031164,0.55,2610.6,2610.3,10.0]
[1749043031380,0.55,2610.6,2610.2,2.173826]
[1749043031990,0.55,2610.6,2610.2,10.0]
[1749043032204,0.75565,2610.6,2610.2,10.0]
[1749043032716,0.75565,2610.6,2610.1,7.72022]
[1749043032918,1.4065,2610.7,2610.3,10.0]
[1749043033099,0.1,2610.8,2610.5,10.0]
[1749043033275,0.1,2610.8,2610.3,0.0236]
[1749043033276,0.1,2610.8,2610.6,8.059]
[1749043033467,0.1,2610.8,2610.7,15.88129]
[1749043033683,0.65,2610.8,2610.7,14.61729]
[1749043033894,0.1,2610.8,2610.7,14.61729]
[1749043035270,0.1,2610.8,2610.7,11.583039]
[1749043036112,0.1,2610.8,2610.7,8.884172]
[1749043038469,0.1,2610.8,2609.9,15.59049762]
[1749043038470,0.55,2610.6,2610.0,30.0]
[1749043038732,0.55,2610.6,2610.2,16.557237]
[1749043038874,0.55,2610.6,2610.4,10.0]
[1749043039209,0.55,2610.6,2610.3,10.0]
[1749043039365,0.55,2610.6,2610.4,6.361]
[1749043039604,0.75313,2610.6,2610.1,1.7]
[1749043039846,0.75313,2610.6,2610.2,6.361]
[1749043040009,0.75313,2610.6,2610.4,10.0]
[1749043040208,0.75313,2610.6,2610.3,10.0]
[1749043040547,0.75313,2610.6,2610.4,6.36]
[1749043040702,0.55,2610.4,2610.1,1.7]
[1749043040906,0.55,2610.4,2610.2,6.359]
[1749043041108,0.55,2610.4,2610.3,4.894347]
[1749043043634,1.3813,2610.7,2610.5,10.0]
[1749043043831,0.55,2610.6,2610.5,13.727164]
[1749043044134,0.55,2610.6,2610.4,15.907102]
[1749043044332,0.1,2610.8,2610.4,13.975866]
[1749043044530,0.1,2610.8,2610.6,6.551881]
[1749043044715,0.1,2610.8,2610.7,1.7]
[1749043044920,0.65,2610.8,2610.7,1.7]
[1749043045724,0.65,2610.8,2610.7,5.217826]
[1749043045919,0.65,2610.8,2610.7,1.7]
[1749043046138,0.65,2610.8,2610.7,5.0253]
[1749043046340,0.65,2610.8,2610.7,1.7]
[1749043046844,0.65,2610.8,2609.7,11.15930176]
[1749043046845,0.55,2610.7,2610.0,3.209046]
[1749043047056,0.55,2610.7,2610.2,8.496288]
[1749043047259,0.55,2610.5,2610.4,10.0]
[1749043047420,0.55,2610.5,2610.3,6.349]
[1749043047621,0.55,2610.5,2610.4,6.354]
[1749043049416,0.55,2610.5,2610.3,10.0]
[1749043049627,0.55,2610.5,2610.4,8.031]
[1749043051966,0.55,2610.5,2610.0,10.416236]
[1749043052133,0.55,2610.5,2610.4,1.681]
[1749043052320,0.74512,2610.5,2610.4,1.681]
[1749043052656,0.74512,2610.5,2610.4,8.026]
[1749043053975,0.55,2610.5,2610.4,8.026]
[1749043056177,0.55,2610.5,2610.4,16.287]
[1749043056942,0.55,2610.5,2610.4,8.261]
[1749043057138,0.55,2610.5,2610.4,16.285]
[1749043062637,0.55,2610.5,2610.4,9.942]
[1749043062965,0.74512,2610.5,2610.4,16.285]
[1749043064084,0.55,2610.5,2610.4,16.285]
[1749043064243,0.55,2610.7,2610.4,16.285]
[1749043065033,0.1,2610.8,2610.5,23.710637]
[1749043065228,0.1,2610.8,2610.6,0.0236]
[1749043065432,0.1,2610.8,2610.7,24.874052]
[1749043065662,0.1,2610.8,2610.7,12.204352]
[1749043067033,0.1,2610.8,2610.6,0.0236]
[1749043067267,1.5094,2610.8,2610.6,10.0]
[1749043067438,0.55,2610.7,2610.4,8.261]
[1749043067649,0.55,2610.7,2610.5,8.024]
[1749043068050,0.55,2610.7,2610.6,9.942]
[1749043068246,0.75794,2610.7,2610.6,9.942]
[1749043068985,0.75794,2610.7,2610.6,8.261]
[1749043069492,0.75794,2610.7,2610.6,16.285]
[1749043072382,0.75794,2610.7,2609.4,16.0]
[1749043072581,0.55,2610.7,2609.5,30.0]
[1749043073471,0.55,2610.7,2609.6,6.343]
[1749043073679,0.55,2610.7,2609.7,26.933648]
[1749043073852,0.55,2610.7,2609.7,26.033648]
[1749043076685,0.55,2610.7,2609.9,16.599866]
[1749043076835,0.55,2610.5,2609.9,16.599866]
[1749043077053,0.55,2610.5,2609.8,6.343]
[1749043077478,0.55,2610.5,2609.9,9.938]
[1749043078196,0.55,2610.5,2609.9,8.261]
[1749043078359,0.55,2610.5,2609.0,16.0]
[1749043078360,0.55,2610.3,2609.0,16.0]
[1749043078558,0.55,2610.3,2610.0,8.261]
[1749043078772,0.55,2610.3,2610.1,8.02]
[1749043081371,0.55,2610.1,2610.0,8.261]
[1749043081604,1.9222,2610.1,2610.0,16.281]
[1749043081759,1.9222,2610.1,2610.0,8.261]
[1749043082103,2.84716976,2610.1,2610.0,16.281]
[1749043083342,1.4082,2610.3,2610.0,16.281]
[1749043083458,1.4082,2610.5,2610.1,10.310452]
[1749043083659,1.4082,2610.7,2610.2,10.0]
[1749043083962,0.55,2610.6,2610.3,8.02]
[1749043084174,7.87749762,2610.6,2610.0,8.261]
[1749043084375,2.74594976,2610.5,2610.4,1.677]
[1749043086396,7.32749762,2610.6,2610.4,1.677]
[1749043086565,1.3713,2610.7,2610.4,1.677]
[1749043086759,0.55,2610.6,2610.4,1.677]
[1749043087712,7.87749762,2610.6,2610.4,1.677]
[1749043090067,7.87749762,2610.6,2610.5,6.343]
[1749043090271,0.55,2610.4,2610.3,8.262]
[1749043090497,1.9353,2610.4,2610.3,8.262]
[1749043090669,1.9353,2610.4,2610.3,9.939]
[1749043090866,1.9353,2610.4,2610.3,16.282]
[1749043091073,2.95506774,2610.4,2610.3,8.262]
[1749043091278,2.95506774,2610.4,2610.3,9.939]
[1749043095305,2.95506774,2610.4,2608.1,0.02]
[1749043095306,6.872,2610.2,2608.1,0.02]
[1749043095489,0.55,2608.3,2608.2,8.046]
[1749043095696,0.55,2608.3,2608.2,8.045]
[1749043096455,0.55,2608.3,2608.2,8.044]
[1749043097161,0.55,2608.3,2608.2,1.677]
[1749043098323,0.55,2608.3,2608.2,8.043]
[1749043099159,0.55,2608.3,2608.2,1.677]
[1749043099338,0.55,2608.3,2608.2,8.041]
[1749043100262,1.47144976,2608.3,2608.2,1.678]
[1749043100574,1.47144976,2608.3,2608.2,8.04]
[1749043101071,1.47144976,2608.3,2608.2,1.678]
[1749043101370,1.47144976,2608.3,2608.2,8.039]
[1749043102188,1.337,2608.5,2608.2,8.039]
[1749043102487,0.02,2608.9,2608.2,8.039]
[1749043102488,8.77659762,2608.9,2608.2,8.039]
[1749043102685,7.32749762,2608.6,2608.2,8.039]
[1749043102890,0.55,2608.5,2608.2,8.039]
[1749043103047,7.32749762,2608.6,2608.2,8.039]
[1749043103645,0.55,2608.5,2608.2,8.039]
[1749043104258,0.55,2608.5,2608.3,9.945]
[1749043104462,0.55,2608.5,2608.4,1.678]
[1749043105477,0.55,2608.5,2608.4,8.036]
[1749043106579,7.87749762,2608.8,2608.4,8.036]
[1749043106899,8.81015738,2608.8,2608.4,8.036]
[1749043107197,8.81015738,2608.8,2608.3,8.267]
[1749043107198,0.55,2608.4,2608.3,8.267]
[1749043107400,0.02,2608.9,2608.3,16.304]
[1749043107603,1.3386,2610.2,2608.3,16.304]
[1749043107604,0.02,2609.9,2608.9,30.0]
[1749043107762,0.02,2609.9,2608.5,10.0]
[1749043107763,0.02,2609.9,2609.3,9.945916]
[1749043107964,0.02,2609.9,2609.4,8.146]
[1749043108903,0.02,2609.9,2608.7,7.32749762]
[1749043109205,0.02,2609.9,2608.9,16.472392]
[1749043109376,0.02,2609.9,2609.1,40.0]
[1749043109700,0.02,2609.9,2609.1,30.0]
[1749043110171,0.02,2609.9,2609.2,29.237714]
[1749043110377,0.02,2609.9,2609.2,28.082505]
[1749043110761,0.02,2609.9,2609.1,30.0]
[1749043111277,0.02,2609.9,2609.1,27.560363]
[1749043111480,0.02,2609.9,2609.2,6.474]
[1749043111674,0.02,2609.9,2609.4,10.0]
[1749043111873,0.02,2609.9,2609.5,11.756]
[1749043112076,0.02,2609.9,2609.6,8.265]
[1749043113486,0.02,2609.9,2609.8,10.0]
[1749043113686,0.02,2609.9,2609.7,8.275896]
[1749043114213,0.02,2609.9,2609.8,1.04459336]
[1749043114410,0.02,2609.9,2609.7,30.0]
[1749043117484,0.02,2609.9,2609.8,8.264]
[1749043117688,0.02,2609.9,2609.8,16.48]
[1749043118460,0.02,2609.9,2609.8,16.478]
[1749043118729,0.02,2609.9,2609.8,18.65]
[1749043118885,0.02,2609.9,2609.8,10.019]
[1749043119091,0.02,2609.9,2609.8,16.479]
[1749043121536,0.02,2609.9,2609.8,22.95394]
[1749043122286,0.02,2609.9,2609.8,31.46163098]
[1749043122790,0.02,2609.9,2609.8,30.41703762]
[1749043124128,0.02,2609.9,2609.8,23.08954]
[1749043129539,0.02,2609.9,2609.8,20.075186]
[1749043130620,0.02,2609.9,2609.0,3.83282487]
[1749043130621,0.55,2609.6,2607.9,8.262]
[1749043130932,0.55,2609.2,2608.2,0.1356]
[1749043131130,1.4153,2609.3,2608.6,30.0]
[1749043131330,0.02,2609.9,2608.8,25.783462]
[1749043131545,0.55,2609.7,2609.0,5.770944]
[1749043131842,0.55,2609.7,2609.1,3.392928]
[1749043132018,0.55,2609.7,2609.2,14.834]
[1749043132217,0.55,2609.7,2609.3,1.755]
[1749043132417,0.92927976,2609.6,2609.3,1.755]
[1749043132617,0.92927976,2609.6,2609.3,8.324]
[1749043132618,0.55,2609.5,2609.3,8.324]
[1749043135352,0.55,2609.5,2609.3,1.755]
[1749043135536,0.55,2609.5,2609.4,6.56]
[1749043140376,1.4153,2609.8,2609.4,6.56]
[1749043140533,0.02,2609.9,2609.6,10.0]
[1749043140732,0.02,2609.9,2609.4,6.56]
[1749043142842,0.57,2609.9,2609.3,1.755]
[1749043143057,0.57,2609.9,2609.5,6.535]
[1749043143280,0.55,2609.7,2609.5,6.535]
[1749043144741,0.55,2609.7,2609.6,8.326]
[1749043144949,0.55,2609.7,2609.2,8.262]
[1749043145149,0.55,2609.7,2609.3,8.325]
[1749043145349,0.55,2609.7,2609.2,8.262]
[1749043145546,0.55,2609.7,2609.3,8.323]
[1749043147149,0.55,2609.7,2609.4,16.585]
[1749043147861,0.55,2609.7,2609.4,10.061]
[1749043148068,0.55,2609.7,2609.5,6.519]
[1749043149447,0.55,2609.7,2609.4,10.061]
[1749043149448,1.9438,2609.5,2609.4,8.264]
[1749043149650,18.87092976,2609.5,2609.4,10.061]
[1749043156604,2.87092976,2609.5,2609.4,10.061]
[1749043157011,2.87092976,2609.5,2609.4,16.558]
[1749043157211,2.87092976,2609.5,2609.4,10.061]
[1749043157399,2.87092976,2609.5,2609.4,16.558]
[1749043158474,2.87092976,2609.5,2609.4,8.264]
[1749043158676,2.87092976,2609.5,2609.4,16.555]
[1749043158677,9.27129762,2609.5,2609.4,16.555]
[1749043158871,1.4058,2609.3,2607.3,7.536746]
[1749043159110,32.66449762,2609.5,2607.1,0.02]
[1749043159111,0.55,2608.3,2607.9,8.265]
[1749043159311,0.55,2608.3,2608.0,8.305]
[1749043159514,0.55,2608.3,2608.1,6.506]
[1749043159675,0.55,2608.3,2608.2,6.506]
[1749043159887,1.3888,2608.2,2607.9,8.265]
[1749043160091,0.55,2608.1,2608.0,8.303]
[1749043160424,7.87749762,2608.1,2608.0,1.798]
[1749043160721,7.87749762,2608.1,2608.0,8.301]
[1749043161883,0.55,2608.1,2608.0,8.301]
[1749043164930,0.55,2608.1,2607.9,8.265]
[1749043165132,0.55,2608.4,2608.0,8.29]
[1749043165631,7.87749762,2608.4,2608.0,1.798]
[1749043165795,7.87749762,2608.4,2608.1,6.49]
[1749043169098,0.55,2608.4,2608.1,6.49]
[1749043172112,0.55,2608.4,2608.2,6.473]
[1749043176599,0.55,2608.4,2608.0,1.798]
[1749043176805,0.55,2608.4,2608.1,6.461]
[1749043178412,0.55,2608.4,2608.0,1.798]
[1749043178613,1.3562,2608.8,2608.1,6.457]
[1749043178829,0.55,2608.7,2608.3,10.0]
[1749043179141,0.55,2608.7,2608.2,14.395889]
[1749043179302,1.3562,2608.8,2608.3,10.0]
[1749043179500,1.3562,2608.8,2608.1,6.457]
[1749043179501,1.3562,2608.8,2608.2,13.950889]
[1749043179706,0.55,2608.7,2608.0,11.798]
[1749043179907,0.55,2608.7,2608.2,10.0]
[1749043180436,0.55,2608.7,2608.2,12.307017]
[1749043180641,0.55,2608.7,2608.1,6.454]
[1749043180642,0.55,2608.7,2608.3,10.0]
[1749043180818,0.55,2608.7,2608.2,10.0]
[1749043181423,0.55,2608.7,2608.3,10.0]
[1749043181949,0.55,2608.9,2608.2,18.738522]
[1749043182141,0.55,2608.9,2608.2,8.738522]
[1749043182336,7.32749762,2609.3,2608.2,8.738522]
[1749043182337,1.4581,2609.5,2608.2,8.738522]
[1749043182538,1.4581,2609.5,2608.4,26.343612]
[1749043182742,7.32749762,2609.3,2608.4,16.0]
[1749043183041,0.55,2609.2,2608.6,10.0]
[1749043183350,0.55,2609.2,2608.7,8.204]
[1749043183668,1.3287,2609.1,2608.8,8.203]
[1749043183811,1.3287,2609.1,2608.9,1.757]
[1749043184018,2.24931976,2609.1,2608.9,1.757]
[1749043184211,7.32749762,2609.0,2608.9,1.757]
[1749043184954,7.87749762,2609.0,2608.9,1.757]
[1749043185155,0.55,2609.0,2608.9,1.757]
[1749043185660,0.55,2608.9,2608.1,39.973627]
[1749043185854,0.55,2608.9,2607.9,8.265]
[1749043185855,0.55,2608.9,2608.3,17.138029]
[1749043186154,1.3287,2609.1,2608.6,10.0]
[1749043186155,0.55,2609.0,2608.6,10.0]
[1749043186392,0.55,2609.0,2608.4,10.0]
[1749043186595,0.55,2609.0,2608.5,10.0]
[1749043186753,0.55,2609.0,2608.3,7.582813]
[1749043186949,0.55,2609.0,2608.6,6.442]
[1749043187870,0.55,2609.0,2608.7,6.434]
[1749043188188,0.55,2609.0,2608.8,1.756]
[1749043189186,4.07089846,2608.9,2608.8,1.756]
[1749043190189,0.55,2608.9,2608.8,1.756]
[1749043193202,3.52089846,2609.2,2608.8,1.756]
[1749043194320,3.52089846,2609.2,2608.9,10.0]
[1749043194820,1.9809,2609.4,2608.9,10.0]
[1749043194821,4.07089846,2609.3,2608.9,10.0]
[1749043195591,3.79664884,2609.3,2608.9,10.0]
[1749043195808,3.52089846,2609.1,2608.9,10.0]
[1749043197468,1.3215,2609.8,2608.9,30.0]
[1749043197605,1.3215,2609.8,2608.9,26.729301]
[1749043197807,0.55,2609.7,2608.9,24.196223]
[1749043198008,3.52089846,2609.6,2608.9,19.784593]
[1749043198339,3.52089846,2609.6,2608.9,17.917593]
[1749043198647,3.52089846,2609.6,2608.9,15.061842]
[1749043198809,0.55,2609.7,2608.9,15.061842]
[1749043198810,3.52089846,2609.4,2609.0,6.41]
[1749043200109,3.52089846,2609.4,2608.9,10.0]
[1749043200409,3.52089846,2609.4,2609.0,8.118]
[1749043200637,3.52089846,2609.4,2609.2,10.0]
[1749043200818,3.52089846,2609.4,2609.3,16.382]
[1749043201983,3.52089846,2609.6,2609.3,16.382]
[1749043202400,0.55,2609.7,2609.3,16.382]
[1749043203346,3.52089846,2609.6,2609.3,16.382]
[1749043203696,3.52089846,2609.4,2609.3,16.382]
[1749043206411,1.4249,2610.1,2609.3,16.382]
[1749043206567,1.4249,2610.1,2609.4,23.29725]
[1749043206903,3.52089846,2610.3,2609.4,23.29725]
[1749043209303,1.3777,2610.4,2609.4,23.29725]
[1749043210504,1.4271,2610.6,2609.4,23.29725]
[1749043210707,1.5271,2610.8,2609.7,16.0]
[1749043210869,1.5271,2610.8,2609.8,41.470759]
[1749043211611,0.1,2610.8,2609.8,41.470759]
[1749043212020,0.1,2610.8,2609.8,45.30247024]
[1749043212496,0.001936,2609.9,2609.8,41.470759]
[1749043212694,0.001936,2609.9,2609.8,49.566759]
[1749043217728,0.001936,2609.9,2609.8,53.39847024]
[1749043217877,0.001936,2609.9,2609.8,49.566759]
[1749043218581,0.001936,2609.9,2609.8,53.39847024]
[1749043219119,0.001936,2609.9,2609.8,53.94847024]
[1749043219808,0.1,2610.8,2610.6,3.83052759]
[1749043220009,0.1,2610.8,2610.7,62.343]
[1749043220202,0.1,2610.8,2610.7,66.17339031]
[1749043220568,0.1,2610.8,2610.7,62.343]
[1749043221900,0.1,2610.8,2610.7,48.083079]
[1749043222613,0.1,2610.8,2610.7,51.91346931]
[1749043222909,0.01180542,2610.8,2610.7,48.083079]
[1749043223109,0.01180542,2610.8,2610.7,51.91346931]
[1749043223312,0.01180542,2610.8,2610.7,48.083079]
[1749043224297,0.01180542,2610.8,2610.7,25.715079]
[1749043224496,0.01180542,2610.8,2610.7,32.079079]
[1749043224729,0.01180542,2610.8,2610.7,48.079079]
[1749043224939,0.01180542,2610.8,2610.7,51.90946931]
[1749043225239,0.01180542,2610.8,2610.7,59.22495042]
[1749043225651,1.3743,2612.8,2610.8,16.0]
[1749043225945,1.3743,2612.8,2612.2,37.246907]
[1749043226146,1.3743,2613.0,2612.4,11.469844]
[1749043226328,1.3743,2613.0,2612.5,9.99934063]
[1749043226501,1.3743,2613.0,2612.6,13.224585]
[1749043226706,1.3743,2613.0,2612.6,14.87635063]
[1749043226903,1.3743,2613.0,2612.6,21.963092]
[1749043227135,1.4108,2613.3,2612.7,1.66726297]
[1749043227338,0.02,2613.9,2612.9,33.82712806]
[1749043227570,0.02,2613.9,2613.3,17.623668]
[1749043227844,0.02,2613.9,2613.6,10.0]
[1749043228060,0.02,2613.9,2613.4,8.112]
[1749043228061,0.02,2613.9,2613.8,12.117146]
[1749043229028,0.02,2613.9,2613.8,7.684959]
[1749043229235,0.02,2613.9,2613.8,14.750289]
[1749043229435,0.02,2613.9,2613.8,13.456645]
[1749043229750,0.02,2613.9,2613.8,10.120645]
[1749043229947,0.02,2613.9,2613.8,1.71]
[1749043230147,0.02,2613.9,2613.8,12.027457]
[1749043230450,0.02,2613.9,2613.8,9.966]
[1749043230763,0.02,2613.9,2613.8,9.965]
[1749043231126,2.0136,2613.9,2613.8,9.965]
[1749043231309,2.94650811,2613.9,2613.8,9.965]
[1749043231551,2.0136,2613.9,2613.8,9.965]
[1749043232153,0.02,2614.9,2614.1,40.0]
[1749043232352,0.02,2614.9,2614.8,46.05347811]
[1749043232648,0.02,2614.9,2614.8,47.84347811]
[1749043232862,0.00293148,2614.9,2614.8,49.0312599]
[1749043233075,0.00293148,2614.9,2614.8,48.47265594]
[1749043233389,0.00293148,2614.9,2614.8,10.977532]
[1749043235852,0.00293148,2614.9,2614.8,30.80191627]
[1749043236091,0.00293148,2614.9,2614.8,19.16045983]
[1749043236417,0.00293148,2614.9,2614.8,18.606532]
[1749043236548,0.00293148,2614.9,2614.8,26.993532]
[1749043237089,0.00293148,2614.9,2614.8,25.169717]
[1749043237551,0.00293148,2614.9,2614.8,37.24610127]
[1749043237754,0.00293148,2614.9,2614.8,60.81329861]
[1749043239169,0.00293148,2614.9,2614.8,46.792343]
[1749043239375,0.00293148,2614.9,2614.8,22.240185]
[1749043239896,0.00293148,2614.9,2614.8,42.06456927]
[1749043240584,0.00293148,2614.9,2614.8,38.240185]
[1749043240786,0.00293148,2614.9,2614.8,42.77051355]
[1749043240982,0.00293148,2614.9,2614.8,42.6184971]
[1749043241397,0.00293148,2614.9,2614.8,49.63176661]
[1749043241606,0.00103107,2615.9,2615.8,47.14678434]
[1749043241782,0.00103107,2615.9,2615.8,15.020243]
[1749043241981,0.00103107,2615.9,2615.8,8.418]
[1749043242186,0.00103107,2615.9,2615.8,11.479324]
[1749043242808,0.00103107,2615.9,2615.8,15.30224624]
[1749043243013,0.00103107,2615.9,2615.8,8.418]
[1749043243196,0.00103107,2615.9,2615.8,12.12263]
[1749043244709,0.00103107,2615.9,2615.8,28.12263]
[1749043245299,0.00103107,2615.9,2615.8,28.11463]
[1749043246086,0.00103107,2615.9,2615.8,28.11263]
[1749043246858,0.00103107,2615.9,2615.8,28.10863]
[1749043248355,0.00103107,2615.9,2615.8,28.10663]
[1749043248667,0.00103107,2615.9,2615.8,19.70463]
[1749043248962,0.00103107,2615.9,2615.8,28.10463]
[1749043250119,0.00103107,2615.9,2615.8,1.788]
[1749043250334,0.00103107,2615.9,2615.8,8.395]
[1749043250550,0.00103107,2615.9,2615.2,16.0]
[1749043250846,0.00103107,2615.9,2615.7,16.0]
[1749043251048,0.00103107,2615.9,2615.5,16.0]
[1749043251375,0.00103107,2615.9,2615.7,19.259843]
[1749043251578,0.00103107,2615.9,2615.8,1.788]
[1749043251772,0.00103107,2615.9,2615.8,8.389]
[1749043251938,0.00103107,2615.9,2615.8,10.773924]
[1749043252138,0.00103107,2615.9,2615.8,11.089819]
[1749043252566,0.00103107,2615.9,2615.8,8.386]
[1749043252763,0.00103107,2615.9,2615.8,11.088819]
[1749043253990,0.00103107,2615.9,2615.8,8.38]
[1749043254355,0.00103107,2615.9,2615.8,11.674845]
[1749043254878,0.00103107,2615.9,2615.8,26.485149]
[1749043259164,0.00103107,2615.9,2615.8,33.76381745]
[1749043259369,0.00103107,2615.9,2615.8,38.14066752]
[1749043260503,0.00103107,2615.9,2615.8,33.76381745]
[1749043261006,0.00103107,2615.9,2615.8,33.75581745]
[1749043261308,0.00103107,2615.9,2615.8,37.57873969]
[1749043261904,0.00103107,2615.9,2615.8,33.75581745]
[1749043262316,0.00103107,2615.9,2615.8,37.57873969]
[1749043262531,0.00103107,2615.9,2615.8,19.47359069]
[1749043262716,0.00103107,2615.9,2615.8,15.65066845]
[1749043262922,0.00103107,2615.9,2615.8,45.65066845]
[1749043263205,0.00103107,2615.9,2615.8,49.47359069]
[1749043263410,0.00015158,2615.9,2615.8,45.65066845]
[1749043263943,0.00015158,2615.9,2615.8,49.47359069]
[1749043264317,0.00015158,2615.9,2615.8,45.65066845]
[1749043264527,0.00015158,2615.9,2615.8,65.47359069]
[1749043264720,0.00015158,2615.9,2615.8,61.65066845]